bitfinex/quotes_ETHUSD_20250425
["timestamp","ask_amount","ask_price","bid_price","bid_amount"]
[1745590222491,6.0,1778.9,1778.4,5.483]
[1745590222697,5.62199076,1778.8,1778.4,5.483]
[1745590223415,5.62234465,1778.7,1778.4,5.483]
[1745590223629,5.62250667,1778.6,1778.4,5.483]
[1745590223999,5.62212003,1778.7,1778.4,5.483]
[1745590224186,14.62164385,1778.9,1778.4,5.483]
[1745590224391,3.0,1778.8,1778.4,6.1092]
[1745590224699,5.62208706,1778.7,1778.4,6.1092]
[1745590224897,5.62251366,1778.6,1778.4,5.483]
[1745590225127,5.62208706,1778.7,1778.4,5.483]
[1745590225285,8.62177192,1778.8,1778.4,5.483]
[1745590225630,11.62158277,1778.9,1778.4,5.483]
[1745590225986,5.62158277,1778.9,1778.4,5.483]
[1745590226191,5.62158277,1778.9,1778.4,6.1092]
[1745590226404,5.62177232,1778.8,1778.4,6.1092]
[1745590226601,5.62177232,1778.8,1778.4,5.483]
[1745590226602,5.62218865,1778.7,1778.4,5.483]
[1745590226825,5.62177232,1778.8,1778.4,5.483]
[1745590227124,5.62158836,1778.9,1778.4,5.483]
[1745590227518,3.7549,1779.0,1778.4,5.483]
[1745590227519,9.37617203,1779.0,1778.4,5.483]
[1745590227827,8.62127203,1779.0,1778.5,0.7954]
[1745590228027,11.62098256,1779.1,1778.5,0.7954]
[1745590228391,5.62068588,1779.2,1778.5,0.7954]
[1745590228595,5.62036791,1779.3,1778.5,5.62261935]
[1745590228829,5.62059647,1779.2,1778.7,0.8054]
[1745590229333,6.0,1779.5,1778.9,0.8054]
[1745590229534,5.61944072,1779.6,1778.9,0.8054]
[1745590229706,5.61957703,1779.5,1778.9,0.8054]
[1745590230040,11.99852061,1779.7,1778.9,0.8054]
[1745590230330,6.37937193,1779.7,1779.0,0.7608]
[1745590230536,5.61917193,1779.7,1779.1,0.7608]
[1745590230827,5.6191778,1779.7,1779.1,0.7608]
[1745590231034,5.61948842,1779.6,1779.1,0.7608]
[1745590231829,0.7649,1779.4,1778.8,0.7698]
[1745590232027,5.62041665,1779.3,1778.8,6.2518]
[1745590232256,0.25015361,1779.3,1778.8,6.2518]
[1745590232431,8.87049336,1779.3,1778.8,6.2518]
[1745590232633,0.25015361,1779.3,1778.8,6.87698]
[1745590232934,5.61966999,1779.5,1778.9,0.8136]
[1745590233136,0.25308508,1779.2,1778.9,0.8136]
[1745590233343,5.62019762,1779.3,1778.9,0.8136]
[1745590233501,0.25293331,1779.1,1778.9,0.8136]
[1745590233701,5.62006685,1779.4,1778.9,1.505678]
[1745590233939,0.25268101,1779.3,1778.9,0.8136]
[1745590234110,0.25268101,1779.3,1779.1,0.7735]
[1745590234297,6.44847365,1779.8,1779.1,0.7735]
[1745590234298,5.61877365,1779.8,1779.1,0.7735]
[1745590234498,0.25328787,1779.7,1779.3,0.7605]
[1745590234701,0.7677,1780.2,1779.3,0.7605]
[1745590234702,0.7677,1781.4,1780.2,5.61734636]
[1745590235033,6.02419304,1781.8,1780.7,0.7809]
[1745590235034,0.7677,1781.5,1780.7,0.7809]
[1745590235234,1.19500056,1781.5,1780.8,5.481]
[1745590235612,5.61377149,1781.4,1780.8,5.481]
[1745590235808,6.38114328,1781.5,1780.8,5.481]
[1745590236044,0.22091674,1780.9,1780.8,5.481]
[1745590236358,0.22091674,1780.9,1780.8,6.306]
[1745590236966,0.22091674,1780.9,1780.8,14.92145372]
[1745590237129,0.05,1780.9,1780.8,17.59211501]
[1745590240739,0.05,1780.9,1780.8,11.97666129]
[1745590240960,0.05,1780.9,1780.8,17.58911501]
[1745590244010,0.05,1780.9,1780.8,11.97366129]
[1745590244293,0.05,1780.9,1780.8,8.97366129]
[1745590245683,0.05,1780.9,1780.8,8.97166129]
[1745590245871,0.05,1780.9,1780.8,6.301]
[1745590246077,0.24327343,1780.9,1780.8,6.301]
[1745590250350,0.24327343,1780.9,1780.8,11.91645372]
[1745590250552,0.05,1780.9,1780.8,6.301]
[1745590250872,0.05,1780.9,1780.8,5.471]
[1745590251191,0.24171078,1780.9,1780.8,5.471]
[1745590251384,0.05,1780.9,1780.8,5.471]
[1745590251684,0.24171078,1780.9,1780.8,5.471]
[1745590251888,0.05,1780.9,1780.8,5.471]
[1745590252182,0.05,1780.9,1780.8,6.2544]
[1745590252385,0.24078265,1780.9,1780.8,6.2544]
[1745590252586,0.05,1780.9,1780.8,6.2544]
[1745590253090,0.24081104,1780.9,1780.8,6.2544]
[1745590253284,0.05,1780.9,1780.8,6.87984]
[1745590253487,0.24081104,1780.9,1780.8,6.87984]
[1745590253790,0.2409623,1780.9,1780.8,6.87984]
[1745590253971,0.2409623,1780.9,1780.8,6.09644]
[1745590254192,0.2409623,1780.9,1780.8,5.471]
[1745590254355,0.05,1780.9,1780.8,5.471]
[1745590254554,0.24108514,1780.9,1780.8,5.471]
[1745590255254,0.24108514,1780.9,1780.5,0.757]
[1745590255469,0.24108514,1780.9,1780.6,5.47]
[1745590255911,0.24108514,1780.9,1780.6,6.0927]
[1745590258106,0.24108514,1780.9,1780.6,5.47]
[1745590259282,0.24108514,1780.9,1780.6,11.08594125]
[1745590259482,0.24108514,1780.9,1780.6,5.47]
[1745590260117,0.24108514,1780.9,1780.6,11.08603222]
[1745590260306,0.24108514,1780.9,1780.6,5.47]
[1745590260508,0.24108514,1780.9,1780.7,0.547]
[1745590260696,0.24108514,1780.9,1780.8,0.7592]
[1745590261025,0.24108514,1780.9,1780.8,6.37465372]
[1745590261212,0.24108514,1780.9,1780.8,0.7592]
[1745590261525,0.05,1780.9,1780.8,0.7592]
[1745590261828,0.23974562,1780.9,1780.8,6.80527372]
[1745590262022,0.23974562,1780.9,1780.8,1.18982]
[1745590262348,0.05,1780.9,1780.8,12.97476566]
[1745590262701,0.05,1780.9,1780.8,15.97476566]
[1745590262896,0.4117543,1781.8,1781.0,5.61482313]
[1745590263116,0.4117543,1781.8,1781.5,0.7655]
[1745590263426,0.4117543,1781.8,1781.6,5.47]
[1745590264202,0.17613442,1781.7,1781.6,6.2609]
[1745590264402,0.17613442,1781.7,1781.6,5.47]
[1745590264606,0.4117543,1781.8,1781.6,5.47]
[1745590265014,0.17613442,1781.7,1781.6,5.47]
[1745590265219,0.17613442,1781.7,1781.6,6.017]
[1745590265625,0.4117543,1781.8,1781.7,6.36491716]
[1745590266210,0.4117543,1781.8,1781.7,0.7523]
[1745590266409,0.4117543,1781.8,1781.4,0.7809]
[1745590266604,0.4117543,1781.8,1781.5,5.47]
[1745590266803,0.17613442,1781.7,1781.5,5.47]
[1745590267003,0.17613442,1781.7,1781.5,6.09509]
[1745590267198,0.4117543,1781.8,1781.5,6.09509]
[1745590267431,0.17598307,1781.6,1781.5,5.47]
[1745590267639,0.4117543,1781.8,1781.5,5.47]
[1745590267932,0.1760913,1781.7,1781.5,5.47]
[1745590268333,0.1760913,1781.7,1781.5,11.63949194]
[1745590268544,0.1760913,1781.7,1781.5,5.47]
[1745590268904,0.4117543,1781.8,1781.5,5.47]
[1745590269113,0.17613389,1781.7,1781.5,5.47]
[1745590269533,0.17613389,1781.7,1781.5,6.017]
[1745590271436,0.4117543,1781.8,1781.5,6.017]
[1745590271805,0.18077178,1781.7,1781.5,6.017]
[1745590272200,0.18077178,1781.7,1781.3,0.7749]
[1745590272510,6.38012363,1781.6,1781.3,5.469]
[1745590272710,5.61356236,1781.4,1781.3,5.469]
[1745590272916,0.7728,1781.1,1780.7,5.469]
[1745590273113,0.17937862,1781.0,1780.7,5.469]
[1745590273312,5.61517394,1780.9,1780.7,5.469]
[1745590273665,0.17650835,1780.8,1780.7,5.469]
[1745590273865,0.17650835,1780.8,1780.5,22.308]
[1745590274072,5.61546161,1780.8,1780.5,22.308]
[1745590274253,0.17536169,1780.7,1780.5,22.308]
[1745590274456,0.17536169,1780.7,1780.5,24.5388]
[1745590274900,6.38732165,1781.1,1780.5,24.5388]
[1745590275089,0.17206443,1780.6,1780.5,25.3122]
[1745590275241,6.3873986,1781.1,1780.5,25.3122]
[1745590275441,5.61494801,1781.0,1780.5,25.3122]
[1745590275758,5.78744794,1781.0,1780.6,5.469]
[1745590276068,5.78744794,1781.0,1780.0,6.16949194]
[1745590276069,0.7882,1780.9,1780.3,5.469]
[1745590276229,0.7882,1780.9,1780.4,1.2988]
[1745590276430,0.17246329,1780.8,1780.4,0.5469]
[1745590276631,5.61570338,1780.8,1780.4,0.5469]
[1745590276880,5.61582073,1780.7,1780.3,5.469]
[1745590277054,5.78816085,1780.7,1780.3,5.469]
[1745590277370,0.17234012,1780.7,1780.3,5.469]
[1745590277879,0.7882,1780.9,1780.3,5.469]
[1745590278171,5.61500858,1781.0,1780.4,0.8024]
[1745590278367,0.17172508,1780.8,1780.4,1.42954]
[1745590278731,6.42777064,1781.1,1780.4,1.42954]
[1745590278939,0.16969861,1781.0,1780.4,1.42954]
[1745590279135,5.78469337,1781.0,1780.4,1.42954]
[1745590279333,0.16969861,1781.0,1780.4,1.42954]
[1745590279652,5.61527144,1780.9,1780.4,0.62714]
[1745590280047,5.61527144,1780.9,1780.3,5.469]
[1745590280048,5.61593039,1780.7,1780.3,5.469]
[1745590280285,0.93634147,1780.8,1780.3,5.469]
[1745590280584,0.16924678,1780.7,1780.3,5.469]
[1745590280891,5.61626775,1780.6,1780.3,5.469]
[1745590281198,5.78501854,1780.7,1780.3,5.469]
[1745590281199,0.16846408,1780.5,1780.3,5.469]
[1745590281387,0.767,1780.8,1780.3,6.0159]
[1745590281587,0.16865361,1780.4,1780.3,6.0159]
[1745590281757,6.38251943,1780.8,1780.3,6.0159]
[1745590281947,0.16868204,1780.4,1780.3,5.469]
[1745590282149,5.61592034,1780.7,1780.3,5.469]
[1745590282363,0.16889992,1780.6,1780.3,5.469]
[1745590282561,5.61592034,1780.7,1780.3,5.469]
[1745590282791,0.16874835,1780.5,1780.3,5.469]
[1745590282951,5.61592034,1780.7,1780.3,5.469]
[1745590283151,0.16889992,1780.6,1780.3,5.469]
[1745590283350,5.61591319,1780.7,1780.3,5.469]
[1745590283685,5.78518693,1780.6,1780.3,5.469]
[1745590283848,5.61689583,1780.4,1780.2,5.486]
[1745590284046,6.55951275,1780.5,1780.2,5.486]
[1745590284283,5.78481389,1780.3,1780.2,5.486]
[1745590284589,5.78430833,1780.3,1779.9,5.486]
[1745590284790,5.6175005,1780.2,1779.9,5.486]
[1745590285025,0.16718768,1780.2,1779.9,5.486]
[1745590285223,0.16718768,1780.2,1779.9,8.5408]
[1745590285396,0.8214,1780.9,1780.0,6.08]
[1745590285591,0.8214,1780.9,1780.3,5.61702671]
[1745590285787,0.8214,1780.9,1780.4,5.486]
[1745590285982,5.61545557,1780.8,1780.4,5.486]
[1745590286200,0.8214,1780.9,1780.4,5.486]
[1745590286527,5.61582951,1780.7,1780.4,5.486]
[1745590286731,5.61655397,1780.5,1779.8,16.839]
[1745590287033,5.6142684,1781.2,1780.0,6.16949194]
[1745590287236,5.61537287,1780.9,1780.1,6.37196256]
[1745590287403,5.61537287,1780.9,1780.1,0.7544]
[1745590287404,6.37025097,1780.8,1780.1,0.7544]
[1745590288021,5.61612393,1780.6,1780.1,0.7544]
[1745590288204,0.7547,1780.8,1780.1,0.7544]
[1745590288408,6.37026488,1780.8,1780.1,0.7544]
[1745590288609,5.61577927,1780.7,1780.1,1.39162509]
[1745590288820,5.61630893,1780.6,1779.9,6.2886]
[1745590288982,0.7547,1780.8,1780.0,6.16949194]
[1745590289188,6.37029692,1780.8,1780.1,0.8298]
[1745590289384,0.7547,1780.8,1780.1,12.0647993]
[1745590289599,0.7547,1780.8,1780.1,0.8298]
[1745590289600,6.37017402,1780.8,1780.1,0.8298]
[1745590289822,5.61615944,1780.6,1780.1,2.0825607]
[1745590290094,5.61609298,1780.6,1780.1,2.0825607]
[1745590290308,5.61597205,1780.7,1780.1,2.0825607]
[1745590291002,5.61613813,1780.6,1780.1,2.0825607]
[1745590291229,5.61597205,1780.7,1780.1,2.0825607]
[1745590291414,5.61597205,1780.7,1780.1,0.8298]
[1745590291415,5.61576907,1780.7,1780.1,0.8298]
[1745590291730,5.61662946,1780.5,1779.9,6.2397]
[1745590291916,0.8022,1780.4,1779.9,6.2397]
[1745590292102,5.61718181,1780.3,1779.8,18.5229]
[1745590292309,6.41905649,1780.4,1779.9,5.487]
[1745590292558,12.03601404,1780.4,1779.9,5.487]
[1745590292765,5.61707708,1780.3,1779.9,5.487]
[1745590293279,6.41905649,1780.4,1779.9,5.487]
[1745590293451,5.61714241,1780.3,1779.9,5.487]
[1745590293978,5.61713435,1780.3,1779.9,5.487]
[1745590294877,6.41905822,1780.4,1779.9,5.487]
[1745590295267,0.8022,1780.4,1779.9,7.7196]
[1745590295453,6.41907052,1780.4,1779.9,7.7196]
[1745590295967,0.8022,1780.4,1779.9,7.7196]
[1745590296477,0.8022,1780.4,1779.9,8.5513]
[1745590297379,6.41898644,1780.4,1779.9,8.5513]
[1745590297561,0.8022,1780.4,1779.9,8.5513]
[1745590298344,12.0360839,1780.4,1779.9,8.5513]
[1745590298543,5.6171915,1780.3,1779.9,6.3187]
[1745590298784,6.41905817,1780.4,1779.9,6.3187]
[1745590299074,0.14698074,1780.2,1779.9,6.3187]
[1745590299379,0.14682914,1780.1,1779.9,6.3187]
[1745590299542,5.61705196,1780.3,1779.9,6.3187]
[1745590299743,0.14698074,1780.2,1779.9,6.3187]
[1745590300172,6.41899336,1780.4,1779.9,6.3187]
[1745590300503,0.14713233,1780.3,1779.9,6.3187]
[1745590300807,5.76416445,1780.3,1779.9,6.3187]
[1745590301677,5.61737036,1780.2,1779.9,5.487]
[1745590302012,5.61737036,1780.2,1779.3,14.78952516]
[1745590302013,0.7723,1779.8,1779.2,0.8206]
[1745590302387,5.76291977,1779.7,1779.2,0.8206]
[1745590302710,0.1438864,1779.7,1779.2,0.8206]
[1745590303182,5.7628147,1779.7,1779.2,0.8206]
[1745590303387,5.61945264,1779.6,1779.2,0.8206]
[1745590303590,5.76321579,1779.6,1779.2,0.8206]
[1745590304192,5.61955778,1779.5,1779.2,0.8206]
[1745590304389,5.76316235,1779.6,1779.2,0.8206]
[1745590304604,0.14351661,1779.4,1779.2,0.8206]
[1745590304904,11.23890113,1779.6,1779.1,0.05]
[1745590305079,0.14336487,1779.3,1779.1,0.05]
[1745590305284,5.6195746,1779.5,1779.1,0.05]
[1745590305485,0.1432131,1779.2,1779.1,0.68112]
[1745590305697,5.6195746,1779.5,1779.1,0.68112]
[1745590305896,0.14304236,1779.2,1779.1,0.68112]
[1745590306225,0.1432131,1779.2,1779.1,0.05]
[1745590306519,0.7537,1779.4,1779.1,0.05]
[1745590306675,0.13648645,1779.2,1779.1,0.05]
[1745590307020,3.0,1780.0,1779.1,0.05]
[1745590307225,6.39698769,1780.1,1779.3,6.40779782]
[1745590307514,0.13767582,1779.9,1779.6,0.7879]
[1745590307721,0.13782746,1780.0,1779.7,5.489]
[1745590307903,0.13655742,1779.8,1779.7,5.489]
[1745590308107,6.04869399,1780.2,1779.7,5.489]
[1745590308318,0.1367565,1779.8,1779.7,5.489]
[1745590308616,0.13684181,1779.8,1779.7,6.11669]
[1745590308936,0.7792,1780.4,1779.7,12.55939246]
[1745590309082,5.61652756,1780.5,1779.7,18.17793748]
[1745590309283,0.13768527,1780.3,1779.7,12.55921367]
[1745590309587,0.13747673,1780.2,1780.0,0.8238]
[1745590309781,0.13747673,1780.2,1780.1,5.471]
[1745590309987,0.7844,1780.6,1780.1,6.10048]
[1745590310293,0.41748606,1780.8,1780.2,0.8238]
[1745590310499,0.13813036,1780.5,1780.2,6.44113617]
[1745590310727,5.61528255,1780.9,1780.2,0.8238]
[1745590310924,0.13806403,1780.4,1780.2,0.8238]
[1745590311232,0.13822504,1780.3,1780.2,0.8238]
[1745590311383,0.13822504,1780.3,1780.2,2.07798144]
[1745590311731,5.61514336,1780.9,1780.2,2.07798144]
[1745590311887,0.7844,1781.0,1780.2,2.07798144]
[1745590311888,11.23137852,1780.8,1780.2,2.07798144]
[1745590312083,0.13898272,1780.8,1780.2,2.07798144]
[1745590312324,5.75455699,1780.8,1780.2,2.07798144]
[1745590313904,5.75455699,1780.8,1780.3,5.471]
[1745590314224,5.75455699,1780.8,1780.3,6.22589814]
[1745590314401,0.13898272,1780.8,1780.3,6.22589814]
[1745590314588,5.75448595,1780.8,1780.3,6.22589814]
[1745590315294,11.37021662,1780.8,1780.3,6.22589814]
[1745590315509,5.75448595,1780.8,1780.3,6.22589814]
[1745590316798,5.61577844,1780.7,1780.3,6.22589814]
[1745590317198,0.13873693,1780.6,1780.3,6.22589814]
[1745590317499,0.13873693,1780.6,1780.4,0.62258981]
[1745590317687,5.61565518,1780.8,1780.3,5.471]
[1745590317887,0.14459564,1780.5,1780.3,5.471]
[1745590318088,5.61565518,1780.8,1780.3,5.471]
[1745590318288,0.14444408,1780.4,1780.3,5.471]
[1745590318491,5.61565518,1780.8,1780.3,5.471]
[1745590318714,0.14444408,1780.4,1780.3,5.471]
[1745590318910,5.61578601,1780.7,1780.3,6.10048]
[1745590319102,0.14444408,1780.4,1780.3,6.10048]
[1745590319297,5.61591402,1780.7,1780.3,6.10048]
[1745590319528,5.61565518,1780.8,1780.3,5.471]
[1745590319529,0.14447249,1780.4,1780.3,5.471]
[1745590319693,5.61563267,1780.8,1780.3,5.471]
[1745590319694,5.61579028,1780.7,1780.3,5.471]
[1745590319894,0.1445009,1780.4,1780.3,5.471]
[1745590320088,5.61579028,1780.7,1780.2,0.8238]
[1745590320294,0.1445009,1780.4,1780.3,5.47]
[1745590320914,5.61596102,1780.7,1780.3,6.09938]
[1745590321113,0.1445009,1780.4,1780.3,5.47]
[1745590321315,5.61590041,1780.7,1780.3,5.47]
[1745590321623,5.61556004,1780.8,1780.3,5.47]
[1745590321827,0.14480399,1780.6,1780.3,5.47]
[1745590322028,5.61556004,1780.8,1780.3,5.47]
[1745590322323,0.1445956,1780.5,1780.3,5.47]
[1745590322513,5.61599112,1780.7,1780.3,6.09938]
[1745590322720,0.14444405,1780.4,1780.3,5.47]
[1745590322921,5.61588268,1780.7,1780.3,5.47]
[1745590323248,5.61545372,1780.8,1780.3,5.47]
[1745590323400,0.15074203,1780.6,1780.3,5.47]
[1745590323608,5.61593904,1780.7,1780.3,5.47]
[1745590323849,0.1506189,1780.5,1780.3,5.47]
[1745590324015,5.61593904,1780.7,1780.3,5.47]
[1745590324211,0.15046783,1780.4,1780.3,5.47]
[1745590324444,6.40121844,1781.3,1780.3,12.26887194]
[1745590324599,6.40121844,1781.3,1780.5,0.7545]
[1745590324805,5.6143616,1781.2,1780.5,0.7545]
[1745590325346,0.41102177,1781.2,1780.5,0.7545]
[1745590325552,0.817,1780.9,1780.5,0.7545]
[1745590325712,12.04776547,1780.9,1780.5,0.7545]
[1745590326045,6.43237129,1780.9,1780.5,0.7545]
[1745590326417,5.61461213,1781.1,1780.5,0.7545]
[1745590326638,5.61461213,1781.1,1780.6,0.768]
[1745590326837,8.61434329,1781.2,1780.7,5.47]
[1745590327006,5.61452944,1781.1,1780.7,5.47]
[1745590327210,1.04638346,1781.5,1780.8,0.768]
[1745590327447,5.61318533,1781.6,1780.8,5.61523684]
[1745590327654,6.02418516,1781.8,1781.0,5.61479829]
[1745590327953,6.02407549,1781.8,1781.2,0.7728]
[1745590328413,6.02419935,1781.8,1781.2,0.7728]
[1745590328617,0.4117543,1781.8,1781.2,6.38688603]
[1745590328818,6.02410058,1781.8,1781.2,0.7728]
[1745590329011,0.11929694,1781.7,1781.2,0.7728]
[1745590329745,0.11929694,1781.7,1781.2,1.39698]
[1745590329914,5.73198838,1781.7,1781.2,1.39698]
[1745590330157,0.11929694,1781.7,1781.2,1.39698]
[1745590330589,5.73201877,1781.7,1781.2,1.39698]
[1745590331109,11.34487641,1781.7,1781.2,1.39698]
[1745590331403,5.61332647,1781.5,1781.3,5.468]
[1745590331571,0.11914559,1781.6,1781.3,5.468]
[1745590331770,5.61356236,1781.4,1781.3,5.468]
[1745590332084,5.61392965,1781.3,1780.9,5.468]
[1745590332290,5.73257044,1781.4,1780.9,6.0914]
[1745590332596,0.11869144,1781.3,1781.0,0.7594]
[1745590332758,9.7832,1781.7,1781.0,0.7594]
[1745590332759,6.0,1781.7,1781.0,0.7594]
[1745590332960,0.4117543,1781.8,1781.3,0.7669]
[1745590333160,0.4117543,1781.8,1781.4,5.468]
[1745590333358,0.4117543,1781.8,1781.5,0.5468]
[1745590333605,0.4117543,1781.8,1781.6,0.8022]
[1745590334813,0.4117543,1781.8,1781.6,5.468]
[1745590335311,5.6126265,1781.7,1781.5,5.468]
[1745590335517,6.02424576,1781.8,1781.4,0.8221]
[1745590335702,5.61281978,1781.7,1781.4,6.2901]
[1745590336102,0.4117543,1781.8,1781.4,6.2901]
[1745590337303,6.02407034,1781.8,1781.4,6.2901]
[1745590338196,0.4117543,1781.8,1781.4,6.91911]
[1745590338576,0.4117543,1781.8,1781.7,6.16949194]
[1745590338773,0.05,1781.9,1781.8,8.61230216]
[1745590339083,0.35818318,1782.2,1782.1,8.61135738]
[1745590339393,0.05,1782.9,1782.8,6.43585413]
[1745590339618,0.05,1782.9,1782.8,15.54443954]
[1745590339933,0.05,1783.9,1783.1,3.2]
[1745590340077,1.83406321,1784.4,1783.9,3.0]
[1745590340271,0.5,1784.7,1784.4,3.0]
[1745590340586,0.5,1784.7,1784.6,8.60349658]
[1745590340908,0.5,1784.7,1784.6,1.96722517]
[1745590341073,0.5,1784.7,1784.5,6.2483]
[1745590341275,0.5,1784.7,1784.5,12.41779194]
[1745590341500,0.5,1784.7,1784.5,6.2483]
[1745590341703,0.5,1784.7,1784.6,5.60349658]
[1745590342027,0.5,1784.7,1784.5,6.7133]
[1745590342186,0.5,1784.7,1784.5,7.25956143]
[1745590342375,0.5,1784.7,1784.5,5.93]
[1745590342782,0.5,1784.7,1784.5,5.925]
[1745590343018,0.15396731,1784.6,1784.5,5.925]
[1745590343182,0.5,1784.7,1784.1,12.57497901]
[1745590343183,6.10337297,1784.7,1784.1,0.8007]
[1745590343385,5.75736185,1784.6,1784.1,0.8007]
[1745590343612,0.15385408,1784.6,1784.5,6.39681059]
[1745590343813,0.5,1784.7,1784.5,6.39681059]
[1745590344118,0.05,1784.9,1784.8,5.60286866]
[1745590344328,0.05,1785.9,1785.3,6.0970426]
[1745590344477,0.05,1785.9,1785.4,0.60970426]
[1745590344819,0.05,1785.9,1785.7,5.59984464]
[1745590345228,0.05,1785.9,1784.7,5.6031826]
[1745590345525,0.05,1785.9,1785.0,5.60224073]
[1745590345678,5.60038929,1785.6,1784.9,0.7519]
[1745590345882,5.60075721,1785.5,1784.9,0.7519]
[1745590346079,8.60152329,1785.3,1784.5,0.7519]
[1745590346381,5.60351016,1784.6,1783.9,0.8175]
[1745590346681,0.13906581,1784.5,1783.9,0.8175]
[1745590346923,3.7784,1785.0,1783.9,0.8175]
[1745590346924,6.3806813,1785.0,1783.9,0.8175]
[1745590347193,5.60416163,1784.4,1783.9,0.8175]
[1745590347427,5.60526117,1784.1,1783.5,0.7528]
[1745590347742,5.60495173,1784.2,1783.5,0.7528]
[1745590348033,0.14000554,1784.1,1783.5,0.7528]
[1745590348180,3.14000554,1784.1,1783.1,0.8688]
[1745590348381,5.60626095,1783.8,1783.1,0.8688]
[1745590348628,5.74463409,1783.7,1783.1,0.8688]
[1745590348830,5.6074851,1783.4,1783.1,0.05]
[1745590349029,5.60699963,1783.5,1783.1,0.05]
[1745590349229,0.13851331,1783.3,1783.2,6.43754913]
[1745590349430,0.7944,1784.8,1783.9,5.60562577]
[1745590349636,6.4,1785.0,1784.0,0.8082]
[1745590349792,6.4,1785.0,1784.1,6.0970426]
[1745590349988,6.4,1785.0,1784.0,0.8082]
[1745590350323,12.00269316,1784.9,1783.7,9.8992426]
[1745590350494,7.1944,1785.2,1783.8,7.08696686]
[1745590350701,5.60344385,1784.7,1783.8,0.98992426]
[1745590350897,5.60431463,1784.4,1783.8,0.98992426]
[1745590351098,5.60556492,1784.0,1783.3,0.7746]
[1745590351298,5.60644246,1783.7,1783.3,0.7746]
[1745590351496,6.399,1784.0,1783.1,0.05]
[1745590351497,5.60608091,1783.8,1783.1,0.05]
[1745590351735,5.60651725,1783.7,1783.1,0.05]
[1745590351938,5.60651736,1783.7,1783.1,0.05]
[1745590352137,5.60632238,1783.8,1783.1,0.05]
[1745590352138,5.60614035,1783.8,1783.1,0.05]
[1745590352441,12.00515955,1783.8,1783.1,0.05]
[1745590352938,6.399,1783.8,1783.1,0.05]
[1745590353323,9.43273116,1783.9,1783.1,0.05]
[1745590353324,12.83150007,1783.9,1783.1,0.05]
[1745590353636,7.2258,1784.3,1783.4,5.60700707]
[1745590353844,7.2258,1784.3,1783.5,0.7704]
[1745590354009,5.60480042,1784.2,1783.5,0.7704]
[1745590354209,12.83040273,1784.3,1783.5,0.7704]
[1745590354411,5.60480165,1784.2,1783.5,0.7704]
[1745590354621,17.6458,1784.7,1783.7,6.0970426]
[1745590354926,5.60557325,1784.0,1783.5,0.7704]
[1745590355156,0.7717,1784.0,1783.2,6.399]
[1745590355438,5.60680825,1783.6,1783.1,0.8233]
[1745590355623,3.0,1783.9,1783.1,0.8233]
[1745590355795,5.60701888,1783.5,1783.1,0.8233]
[1745590355996,5.60658689,1783.7,1783.1,0.8233]
[1745590356200,5.60697441,1783.5,1783.1,0.8233]
[1745590356439,5.60636928,1783.7,1783.1,0.8233]
[1745590356641,0.7717,1784.0,1783.1,0.8233]
[1745590356960,8.60476208,1784.2,1783.2,0.7671]
[1745590357121,5.60606305,1783.8,1783.2,0.7671]
[1745590357305,5.60585774,1783.9,1783.2,0.7671]
[1745590357642,0.7624,1784.4,1783.3,6.399]
[1745590357843,5.60511896,1784.1,1783.3,6.399]
[1745590358145,5.60448295,1784.3,1783.5,5.60680496]
[1745590358649,3.7624,1784.4,1783.6,0.50608628]
[1745590358817,5.60632393,1783.7,1783.6,0.50608628]
[1745590359146,5.60586488,1783.9,1783.2,7.1661]
[1745590359357,6.399,1784.1,1783.2,7.1661]
[1745590359358,5.60559979,1784.0,1783.2,7.1661]
[1745590359538,5.60443871,1784.3,1783.3,3.71661]
[1745590359733,5.60625774,1783.8,1783.3,0.71661]
[1745590359935,5.60582422,1783.9,1783.3,1.21661]
[1745590360137,5.60589513,1783.9,1783.3,1.21661]
[1745590360609,5.60624793,1783.8,1783.3,1.21661]
[1745590360815,5.60624793,1783.8,1783.3,0.5]
[1745590361023,5.60571642,1783.9,1783.3,0.5]
[1745590361226,5.60466834,1784.3,1783.3,0.5]
[1745590361458,5.60522406,1784.1,1783.3,9.10744848]
[1745590361752,5.60506246,1784.2,1783.4,0.50750613]
[1745590361953,5.60461353,1784.3,1783.4,7.07621753]
[1745590362173,5.60461353,1784.3,1783.5,0.50750613]
[1745590362174,5.60572518,1783.9,1783.5,0.50750613]
[1745590362456,5.605947,1783.9,1783.5,0.50750613]
[1745590362763,5.6051921,1784.1,1783.3,0.5]
[1745590362923,5.60481306,1784.2,1783.4,12.2128021]
[1745590363130,5.60477526,1784.2,1783.5,1.72983361]
[1745590363421,6.7624,1784.4,1783.5,1.72983361]
[1745590363626,5.60461103,1784.3,1783.6,0.5085534]
[1745590363859,5.60475301,1784.2,1783.6,0.5085534]
[1745590364251,5.60437883,1784.4,1783.8,0.8309]
[1745590364641,5.60437883,1784.4,1783.9,0.5085534]
[1745590364835,6.41828433,1784.7,1783.9,0.5085534]
[1745590364836,0.8151,1784.7,1783.9,0.5085534]
[1745590365135,5.6024111,1785.0,1784.2,5.60448752]
[1745590365338,0.8151,1785.1,1784.4,0.7593]
[1745590365536,5.60255476,1784.9,1784.0,6.399]
[1745590365777,5.60431823,1784.4,1784.0,6.399]
[1745590366069,0.55,1784.7,1783.5,1.22128021]
[1745590366361,0.55,1784.7,1783.6,7.72999708]
[1745590366362,5.60552665,1784.0,1783.6,7.72999708]
[1745590366568,5.60475382,1784.2,1783.6,8.62512481]
[1745590366750,5.60443871,1784.3,1783.7,0.51079708]
[1745590366956,5.60528429,1784.1,1783.7,0.51079708]
[1745590367143,5.60412463,1784.4,1783.6,8.11432773]
[1745590367144,5.6058476,1783.9,1783.6,8.11432773]
[1745590367460,5.60617057,1783.8,1783.6,6.398]
[1745590367707,5.60558112,1784.0,1783.6,6.398]
[1745590368049,5.60508312,1784.1,1783.6,6.398]